Cogmind - Beta 15 --- EXPLORER MODE // 2025.06.28 @ 12:45:43 Player: viper Result: Self-destructed Performance ------------- Evolutions (5) 2500 Regions Visited (5) 1000 Robots Destroyed (106) 530 Value Destroyed (4642) 4642 Prototype IDs (12) 240 Alien Tech Used (0) 0 Bonus (800) 800 TOTAL SCORE: 9712 Bonus ------- Registered with UFD 300 Met Optimus in HQ 500 Cogmind --------- Core Integrity 58/1000 Matter 32/300 Energy 425/425 System Corruption 13% Temperature Critical (1055) Movement Walking (490) Ox4 Location -5/Upper Caves Parts ------- > --- POWER (4) -------- Light Angular Momentum Engine Light Fission Core Neutrino Core > --- PROPULSION (4) --- Light Armored Exoskeleton Flexi-carbon Leg > --- UTILITY (6) ------ Improved Cryofiber Web Vampiric Humpback Structural Scanner Improved Target Analyzer Cloaking Device > --- WEAPON (4) ------- Coil Gun Enhanced Gauss Cannon > --- INVENTORY (35) --- Micro Fission Core Aluminum Leg Flexi-carbon Leg Armored Leg Improved Heat Sink Improved Heat Sink Advanced Heat Sink Humpback Energy Well (350) Small Matter Pod (50) Medium Matter Pod (100) Terrain Scan Processor Improved Target Analyzer Improved Medium Armor Plating Advanced Shield Generator Advanced Hacking Suite High-powered Tractor Beam Mining Claw Falx Peak State ------------ > --- POWER ------------ Light Angular Momentum Engine Light Fission Core Neutrino Core > --- PROPULSION ------- Light Armored Exoskeleton Flexi-carbon Leg Assembled Alloy Leg > --- UTILITY ---------- Improved Cryofiber Web Advanced Heat Sink Vampiric Humpback Improved Target Analyzer Cloaking Device > --- WEAPON ----------- Gauss Rifle Coil Gun Advanced Assault Cannon Enhanced Gauss Cannon > --- INVENTORY -------- Micro Fission Core Aluminum Leg Flexi-carbon Leg Armored Leg Improved Heat Sink Improved Heat Sink Humpback Energy Well Small Matter Pod Medium Matter Pod Structural Scanner Terrain Scan Processor Improved Target Analyzer Advanced Shield Generator Advanced Hacking Suite System Restoration Module High-powered Tractor Beam Mining Claw Falx [Rating: 89] Favorites ----------- Power Light Fission Core Engine Light Ion Engine Power Core Light Fission Core Propulsion Aluminum Leg Leg Aluminum Leg Utility Targeting Computer Device Improved Cryofiber Web Storage Vampiric Humpback Processor Targeting Computer Protection Power Shielding Weapon Gauss Rifle Energy Gun High-powered Shock Rifle Energy Cannon Disruptor Cannon Ballistic Gun Gauss Rifle Ballistic Cannon Enhanced Gauss Cannon Launcher Grenade Launcher Slashing Weapon Falx Build | -11 -10 -10 -7 -5 -5 ------- Run | Yrd Mat Sub Scr Fac Upp Slots Evolved 11 | . 1 . . 10 . Power 3 | . 1 . . 2 . Propulsion 2 | . . . . 2 . Utility 4 | . . . . 4 . Weapon 2 | . . . . 2 . Parts Attached 76 | 7 1 2 5 58 3 Power 21 | 1 1 . 2 16 1 Engine 9 | 1 1 . 2 5 . Core 12 | . . . . 11 1 Reactor . | . . . . . . Propulsion 13 | 2 . . 1 10 . Treads . | . . . . . . Leg 13 | 2 . . 1 10 . Wheel . | . . . . . . Hover . | . . . . . . Flight . | . . . . . . Utility 20 | 2 . . 1 15 2 Device 13 | . . . . 11 2 Storage 3 | 1 . . 1 1 . Processor 3 | 1 . . . 2 . Hackware . | . . . . . . Protection 1 | . . . . 1 . Artifact . | . . . . . . Weapon 22 | 2 . 2 1 17 . Energy Gun 2 | . . . . 2 . Energy Cannon 1 | . . . . 1 . Ballistic Gun 12 | 2 . 1 1 8 . Ballistic Cannon 3 | . . . . 3 . Launcher 2 | . . . . 2 . Special Weapon . | . . . . . . Impact Weapon . | . . . . . . Slashing Weapon 2 | . . 1 . 1 . Piercing Weapon . | . . . . . . Special Melee Weapon . | . . . . . . Unidentified Prototypes 4 | . . . 2 2 . Parts Lost 41 | . . . . 37 4 Power 12 | . . . . 11 1 Propulsion 6 | . . . . 5 1 Utility 8 | . . . . 8 . Weapon 15 | . . . . 13 2 Highest Loss Streak 7 | . . . . 7 4 To Critical Strikes 3 | . . . . 2 1 Average Backups 12 | 1 6 9 10 13 19 Power . | . . . . 1 1 Propulsion 1 | . . 2 2 1 3 Utility 7 | . 3 4 5 8 13 Weapon 2 | . 2 3 3 2 2 Tool/Special . | . . . . . . Unused Backups 11 | . . . 2 . 9 Power . | . . . . . . Propulsion . | . . . . . . Utility 10 | . . . 1 . 9 Weapon 1 | . . . 1 . . Tool/Special . | . . . . . . Average Slot Usage (%) 87 | . 100 100 100 80 83 Engine 11 | . 25 25 25 3 5 Core 7 | . . . . 12 11 Leg 20 | . 25 25 25 18 15 Device 8 | . . . . 11 16 Storage 7 | . 12 12 12 5 5 Processor 9 | . 12 12 12 9 5 Ballistic Gun 14 | . 25 21 23 9 10 Ballistic Cannon 2 | . . . . 2 10 Slashing Weapon 1 | . . 2 1 2 . Peak Build Rating 89 | 7 8 12 30 89 89 Average Rating 51 | 5 8 8 16 68 86 On Entrance 24 | . 7 8 12 30 89 Naked Turns . | . . . . . . Heaviest Build 280 | 16 19 20 43 280 262 Greatest Support 81 | 20 20 20 40 81 80 Greatest Overweight (x) 5 | 5 . . 1 5 3 Average Overweight (x) 1 | . . . . 2 3 Largest Inventory Capacity 35 | 10 10 10 15 35 35 Average Capacity 23 | 8 10 10 10 29 35 Most Carried 21 | 3 9 10 15 21 21 Average Carried 13 | 1 6 9 10 14 20 Final Capacity 35 | 10 10 10 15 35 35 Final Carried 21 | 3 9 10 14 21 20 Class Distribution -------------------- 37% | Hacker-Mutant 24% | Hauler-Gunner 14% | Hauler-Mutant 9% | Scavenger-Gunner 9% | Scavenger-Skirmisher Dominant Class ---------------- Hacker-Mutant | -10/Materials Hacker-Mutant | -10/Subcaves Hacker-Mutant | -7/Scraptown Hauler-Mutant | -5/Factory Hauler-Gunner | -5/Upper Caves Resources | -11 -10 -10 -7 -5 -5 ----------- Run | Yrd Mat Sub Scr Fac Upp Matter Collected 3420 | 270 55 77 213 2576 229 Remotely 241 | . . . . 241 . Salvage Created 4850 | . 45 59 375 4031 340 Parts 233 | . 3 9 19 189 13 Haulers Intercepted . | . . . . . . Recyclers Shooed 4 | . . . . 4 . Parts Field Recycled . | . . . . . . Retrieved Matter . | . . . . . . Parts Self-Destructed . | . . . . . . Prevented . | . . . . . . Kills | -11 -10 -10 -7 -5 -5 ------- Run | Yrd Mat Sub Scr Fac Upp Combat Hostiles Destroyed 80 | . 1 2 7 60 10 Melee 9 | . . . . 9 . Guns 48 | . 1 2 7 34 4 Cannons 16 | . . . . 10 6 AOE 7 | . . . . 7 . Classes Destroyed 20 | . 1 1 4 14 . Worker 9 | . . . . 9 . Builder 5 | . . . . 5 . Tunneler 2 | . . . . 2 . Recycler 7 | . . . . 7 . Operator 2 | . . . . 2 . Watcher 1 | . . . . 1 . Swarmer 11 | . . . . 7 4 Saboteur 1 | . . . . 1 . Grunt 25 | . 1 . . 18 6 Brawler 1 | . . . . 1 . Duelist 1 | . . . . 1 . Sentry 7 | . . . . 7 . Hunter 7 | . . . . 7 . Programmer 17 | . . . . 17 . Behemoth 1 | . . . . 1 . Subdweller 2 | . . 2 . . . Ranger 1 | . . . 1 . . Guru 1 | . . . 1 . . Scrapper 4 | . . . 4 . . Mutant 1 | . . . 1 . . Best Kill Streak 9 | . 1 2 3 9 6 Combat Bots Only 6 | . 1 2 3 5 6 Max Kills in Single Turn 2 | . 1 1 1 2 2 Gunslinging . | . . . . . . Exploded 2 | . . . . 2 . Melee 1 | . . . . 1 . Uniques/NPCs Destroyed . | . . . . . . Combat | -11 -10 -10 -7 -5 -5 -------- Run | Yrd Mat Sub Scr Fac Upp Hostile Shots Fired 680 | . 8 4 44 567 57 Missed 179 | . 1 2 8 157 11 Hits 501 | . 7 2 36 410 46 Projectile 501 | . 7 2 36 410 46 AOE 1 | . . . . 1 . Critical Strikes 32 | . 2 . 1 24 5 Actively Blocked 1 | . . . . 1 . Part Disruptions 1 | . . . . 1 . Damage Taken 6045 | . 68 29 346 5056 546 Core 732 | . 10 . 83 576 63 Absorbed by Shields . | . . . . . . Redirected to Shielding 51 | . . . . 51 . Ignored by Resistances 3593 | . 42 18 210 3000 323 Core Remaining (%) 81 | 100 . . 62 . . Volleys Fired 212 | . 5 4 19 167 17 Largest 4 | . 2 2 2 4 4 Hottest 191 | . 40 44 49 191 145 Shots Fired 495 | . 10 8 34 391 52 Gun 341 | . 10 8 34 270 19 Cannon 138 | . . . . 105 33 Launcher 16 | . . . . 16 . Special . | . . . . . . Kinetic 449 | . 10 8 34 345 52 Thermal . | . . . . . . Explosive 16 | . . . . 16 . Electromagnetic 30 | . . . . 30 . Robot Hit Streak 32 | . 9 15 32 30 21 Robot Miss Streak 4 | . . 1 1 4 1 Penetration Max 1 | . . . . 1 1 Secondary Targets 1 | . . . . 1 . Max Gunslinging Chain 1 | . . . . 1 . Shots Hit Robots 427 | . 9 7 31 343 37 Core Hits 262 | . 3 4 20 219 16 Critical Kills 8 | . . . . 6 2 Critical Parts Destroyed 12 | . . . . 11 1 Critical Strikes 38 | . . . . 32 6 Destroy 22 | . . . . 19 3 Blast 8 | . . . . 5 3 Corrupt 1 | . . . . 1 . Sever 7 | . . . . 7 . Melee Attacks 58 | . . 4 2 52 . Impact . | . . . . . . Slashing 58 | . . 4 2 52 . Piercing . | . . . . . . Sneak Attacks 9 | . . . . 9 . Combat Hostiles . | . . . . . . Follow-up Attacks . | . . . . . . Damage Inflicted 12756 | . 91 152 638 10821 1054 Guns 6414 | . 91 152 638 5137 396 Cannons 2651 | . . . . 1993 658 Explosions 1492 | . . . . 1492 . Melee 2152 | . . . . 2152 . Ramming 47 | . . . . 47 . Kinetic 8699 | . 91 152 638 6764 1054 Thermal 72 | . . . . 72 . Explosive 1420 | . . . . 1420 . Electromagnetic 366 | . . . . 366 . Impact . | . . . . . . Slashing 2152 | . . . . 2152 . Piercing . | . . . . . . Highest Corruption 18 | . . . . 18 18 Average Corruption 11 | . . . . 10 14 Corruption Purged 5 | . . . . . 5 Corruption Blocked . | . . . . . . Effects 164 | . . . . 123 41 Message Errors 37 | . . . . 27 10 Matter Fused 38 | . . . . 30 8 Heat Flow Errors 20 | . . . . 12 8 Energy Discharges 23 | . . . . 18 5 Parts Rejected 1 | . . . . 1 . Parts Fused 1 | . . . . 1 . Data Loss (minor) 11 | . . . . 7 4 Data Loss (major) 10 | . . . . 9 1 Misfires 5 | . . . . 4 1 Alerts 4 | . . . . 2 2 Weapon Failures 14 | . . . . 12 2 Overload Shots . | . . . . . . Overflow Damage 449 | . . . . 437 12 Projectiles 17 | . . . . 5 12 Explosions 38 | . . . . 38 . Melee 394 | . . . . 394 . Knockbacks 21 | . . . . 14 7 Impact . | . . . . . . Kinetic 21 | . . . . 14 7 Secondary . | . . . . . . Self-Inflicted Damage 83 | . . . . 83 . Shots 5 | . . . . 5 . Rammed . | . . . . . . Targets Rammed 5 | . . . . 5 . Kicked 5 | . . . . 5 . Crushed . | . . . . . . Highest Temperature 1055 | . 95 . 132 519 1055 Average Temperature 171 | . 60 . 45 151 399 Received Heat Transfer 2069 | . 99 9 174 1409 378 Effects 30 | . . . . 16 14 Shutdowns 7 | . . . . 7 . Energy Bleed 6 | . . . . 3 3 Interference 6 | . . . . 6 . Matter Decay 1 | . . . . . 1 Short Circuit 1 | . . . . . 1 Damage (minor) 5 | . . . . . 5 Damage (major) 4 | . . . . . 4 Siege Activations . | . . . . . . Martial Activations . | . . . . . . Shielding Activations . | . . . . . . Robots Disrupted . | . . . . . . Combat Hostiles . | . . . . . . Robots Corrupted . | . . . . . . Combat Hostiles . | . . . . . . Parts Fried 1 | . . . . 1 . Impact Corruptions . | . . . . . . Robots Melted . | . . . . . . Combat Hostiles . | . . . . . . Parts Melted 2 | . . . 1 1 . Heat Transferred 50 | . . . . 50 . Parts Sabotaged . | . . . . . . Parts Stolen . | . . . . . . Parts Stripped . | . . . . . . Power Chain Reactions . | . . . . . . Alert | -11 -10 -10 -7 -5 -5 ------- Run | Yrd Mat Sub Scr Fac Upp Maximum Alert Level 1 | . . . . 1 . Low Security (%) 91 | 100 100 . . 90 . Level 1 8 | . . . . 9 . Level 2 . | . . . . . . Level 3 . | . . . . . . Level 4 . | . . . . . . Level 5 . | . . . . . . High Security . | . . . . . . Max Security . | . . . . . . Peak Influence 287 | . 30 . . 287 . Initial . | . . . . . . Average 60 | . 3 . . 64 . Influence Increases 2646 | . 32 . . 2404 210 Destroy 0b10 Robot/C 1420 | . 20 . . 1200 200 Destroy 0b10 Robot/NC 130 | . . . . 130 . Destroy Leader 302 | . 10 . . 282 10 Trap Triggered on 0b10 20 | . . . . 20 . Successful Hack 17 | . 2 . . 15 . Disable Machine 28 | . . . . 28 . Anti-Garrison Action 150 | . . . . 150 . Destroy Structure 384 | . . . . 384 . Lose Combat Pursuer 195 | . . . . 195 . Influence Decreases 2591 | . 17 15 . 2280 279 Entered New Map 75 | . . 10 . . 65 Time Decay 2138 | . 17 5 . 1937 179 Lost Part 342 | . . . . 307 35 Purge Threat 36 | . . . . 36 . Squads Dispatched 17 | . . . . 17 . Investigation 3 | . . . . 3 . Extermination 7 | . . . . 7 . Reinforcement 3 | . . . . 3 . Assault 1 | . . . . 1 . Garrison 3 | . . . . 3 . Intercept . | . . . . . . Searches Triggered . | . . . . . . Construction Impeded 1 | . . . . 1 . Haulers Reinforced 2 | . . . . 2 . Active Scanning Responses . | . . . . . . Cargo Convoy Interrupts . | . . . . . . Stealth | -11 -10 -10 -7 -5 -5 --------- Run | Yrd Mat Sub Scr Fac Upp Distress Signals 3 | . . . . 3 . Communications Jammed . | . . . . . . Distress Signals . | . . . . . . Times Spotted 115 | . 1 2 15 82 15 Peak Tracking Total 7 | . 1 2 3 6 7 Tactical Retreats 10 | . . . . 10 . Traps | -11 -10 -10 -7 -5 -5 ------- Run | Yrd Mat Sub Scr Fac Upp Traps Triggered . | . . . . . . Indirectly . | . . . . . . Trap Hack Attempts . | . . . . . . Triggered . | . . . . . . Disarmed . | . . . . . . Reprogrammed 2 | . . . . 2 . Reused 2 | . . . . 2 . Traps Extracted . | . . . . . . Installed . | . . . . . . Triggered 2 | . . . . 2 . Machines | -11 -10 -10 -7 -5 -5 ---------- Run | Yrd Mat Sub Scr Fac Upp Machines Disabled 13 | . . . 2 8 3 Max in Single Turn 4 | . . . 1 4 1 Garrison Access 2 | . . . . 2 . Machines Repaired . | . . . . . . Machines Dismantled . | . . . . . . Machines Sabotaged . | . . . . . . Overloaded Fab Kills . | . . . . . . Hacking | -11 -10 -10 -7 -5 -5 --------- Run | Yrd Mat Sub Scr Fac Upp Machines Accessed 15 | . 3 . 8 4 . Terminals 5 | . 3 . . 2 . Fabricators 1 | . . . . 1 . Repair Stations . | . . . . . . Recycling Units . | . . . . . . Scanalyzers . | . . . . . . Garrison Access 1 | . . . . 1 . Total Hacks 89 | . 9 . 62 18 . Successful 84 | . 7 . 62 15 . Failed 5 | . 2 . . 3 . Catastrophic . | . . . . . . Database Lockouts . | . . . . . . Manual . | . . . . . . Terminals 22 | . 9 . . 13 . Fabricators 3 | . . . . 3 . Repair Stations . | . . . . . . Recycling Units . | . . . . . . Scanalyzers . | . . . . . . Garrison Access 2 | . . . . 2 . Terminal Hacks 81 | . 7 . 62 12 . Record 58 | . 1 . 54 3 . Robot Analysis 7 | . . . 7 . . Prototype ID Bank 1 | . 1 . . . . Level Access Points 1 | . . . . 1 . Branch Access Points 1 | . 1 . . . . Emergency Access Points 1 | . . . . 1 . Terminal Index 1 | . . . . 1 . Unreport Threat 2 | . . . . 2 . Locate Traps 3 | . 2 . . 1 . Reprogram Traps 1 | . . . . 1 . Dispatch Records 1 | . . . . 1 . Maintenance Status 1 | . . . . 1 . Transport Status 1 | . 1 . . . . Zone Layout 1 | . 1 . . . . Proto ID Catalog 1 | . . . 1 . . Fabricator Hacks 2 | . . . . 2 . Network Status 2 | . . . . 2 . Repair Station Hacks . | . . . . . . Recycling Unit Hacks . | . . . . . . Scanalyzer . | . . . . . . Garrison Access Hacks 1 | . . . . 1 . Seal Access 1 | . . . . 1 . Unauthorized Hacks . | . . . . . . Terminals . | . . . . . . Fabricators . | . . . . . . Repair Stations . | . . . . . . Recycling Units . | . . . . . . Scanalyzers . | . . . . . . Garrison Access . | . . . . . . Data Cores Recovered 1 | . . . . 1 . Used . | . . . . . . Hacking Detections 7 | . 3 . . 4 . Full Trace Events 5 | . 2 . . 3 . Feedback Events . | . . . . . . Feedback Blocked . | . . . . . . Robot Schematics Acquired . | . . . . . . Robots Built . | . . . . . . Authchips . | . . . . . . Time . | . . . . . . Total Robot Build Rating . | . . . . . . Part Schematics Acquired . | . . . . . . Parts Built . | . . . . . . Authchips . | . . . . . . Time . | . . . . . . Total Part Build Rating . | . . . . . . Parts Repaired . | . . . . . . Time . | . . . . . . Parts Recycled . | . . . . . . Recycled Matter . | . . . . . . Retrieved Matter . | . . . . . . Retrieved Components . | . . . . . . Parts Scanalyzed . | . . . . . . Part Schematics Acquired . | . . . . . . Parts Damaged . | . . . . . . Bothacking | -11 -10 -10 -7 -5 -5 ------------ Run | Yrd Mat Sub Scr Fac Upp Used RIF Installer . | . . . . . . Robots Hacked . | . . . . . . Non-combat . | . . . . . . Combat . | . . . . . . Robot Hacks Applied . | . . . . . . Relay Couplers Released 2 | . . . . 2 . Machine Destruction 2 | . . . . 2 . Fabnet Peak Effective % . | . . . . . . Robots Rewired . | . . . . . . Allies Hacked . | . . . . . . Hacks Repelled . | . . . . . . Allies | -11 -10 -10 -7 -5 -5 -------- Run | Yrd Mat Sub Scr Fac Upp Total Allies . | . . . . . . Largest Group . | . . . . . . Highest-Rated Group . | . . . . . . Highest-Rated Ally . | . . . . . . Total Orders . | . . . . . . Ally Attacks . | . . . . . . Total Damage . | . . . . . . Kills . | . . . . . . Allies Corrupted . | . . . . . . Allies Melted 6 | . . . 6 . . Intel | -11 -10 -10 -7 -5 -5 ------- Run | Yrd Mat Sub Scr Fac Upp Active Infowar (turns) 2184 | . . . . 1230 954 Sensors 970 | . . . . 970 . Terrain 942 | . . . . 942 . Structural 586 | . . . . . 586 Cloaking 1214 | . . . . 260 954 Robot Analysis Total 7 | . . . 7 . . Derelict Logs Recovered . | . . . . . . Drone Launches . | . . . . . . Drone Recoveries . | . . . . . . Exploration | -11 -10 -10 -7 -5 -5 ------------- Run | Yrd Mat Sub Scr Fac Upp Turns Passed 7860 | 72 194 357 2257 4026 954 Spaces Moved 3146 | 53 133 247 1190 1285 238 Core 25 | 25 . . . . . Treads . | . . . . . . Legs 3121 | 28 133 247 1190 1285 238 Wheels . | . . . . . . Hover . | . . . . . . Flight . | . . . . . . Fastest Speed 50 | 50 120 120 120 127 346 Average Speed 212 | 112 120 120 182 247 346 Slowest Speed 385 | 300 120 120 190 385 346 Overloaded Moves . | . . . . . . Propulsion Burnouts . | . . . . . . Robots Hopped . | . . . . . . Potential Cave-ins 6 | . . . 1 5 . Cave-ins Triggered . | . . . . . . Exploration Rate (%) 29 | 4 16 16 73 29 36 Regions Visited 5 Branch Regions 3 Pre-discovered Areas . | . . . . . . Known Exits Taken 4 | 1 1 . 1 1 . Unknown Exits Taken 1 | . . 1 . . . Scrap Searched 1 | . . . 1 . . Spaces Dug 11 | . . . . 11 . Terrain Destroyed 215 | . . . . 206 9 Melee 11 | . . . . 11 . Projectile 23 | . . . . 14 9 AOE 181 | . . . . 181 . Terrain Rammed . | . . . . . . Walls Destroyed . | . . . . . . Machines Disabled . | . . . . . . Actions | -11 -10 -10 -7 -5 -5 --------- Run | Yrd Mat Sub Scr Fac Upp Total 3794 | 62 158 290 1244 1710 330 Wait 196 | . 13 . 9 103 71 Move 3141 | 52 132 246 1189 1284 238 Hop . | . . . . . . Pick Up 33 | 3 7 1 5 17 . Fast Attach 45 | 7 . . 2 35 1 Attach 26 | . 1 . 1 22 2 Detach 7 | . . . 2 4 1 Swap 18 | . . 2 4 12 . Drop 17 | . . . 8 9 . Fire 212 | . 5 4 19 167 17 Melee 58 | . . 4 2 52 . Ram . | . . . . . . Kick 5 | . . . . 5 . Crush . | . . . . . . Escape Stasis . | . . . . . . Rewire 36 | . . 33 3 . . Trap . | . . . . . . Miscellaneous . | . . . . . . Route ------- -11/Scrapyard -10/Materials (discovered 3 exits: Min x2 / *Sub) -10/Subcaves (discovered 3 exits: *Mat x2 / *Scr) -7/Scraptown (discovered 2 exits: *Fac x2) -5/Factory (discovered 5 exits: Fac x4 / *Upp) -5/Upper Caves History --------- Turn | Location | Event 4 | -11/Scrapyard | Identified exit to Materials 4 | -11/Scrapyard | Discovered exit to Materials (range 15) 73 | -11/Scrapyard | Entered Materials 73 | -10/Materials | Evolved 1 slot: Power x1 165 | -10/Materials | Identified exit to Mines 169 | -10/Materials | Identified exit to Subcaves 169 | -10/Materials | Discovered exit to Subcaves (range 12) 267 | -10/Materials | Entered Subcaves 268 | -10/Subcaves | Shifting Twisted Machinery released Mak. Shrapnel Gun 268 | -10/Subcaves | Approached by a straggling Scientist 270 | -10/Subcaves | Shifting Twisted Machinery released Flamer 282 | -10/Subcaves | Identified exit to Materials 282 | -10/Subcaves | Discovered exit to Materials (range 6) 303 | -10/Subcaves | Build established: Hacker-Mutant 408 | -10/Subcaves | Discovered exit to Materials (range 5) 614 | -10/Subcaves | Scientist uncovered a shortcut to Scraptown 624 | -10/Subcaves | Entered Scraptown 764 | -7/Scraptown | Heard Great Nut preacher, LISTEN AND RECITE! 1060 | -7/Scraptown | Identified exit to Factory 1060 | -7/Scraptown | Discovered exit to Factory (range 5) 1254 | -7/Scraptown | Visited Fellowship of the Rings 1292 | -7/Scraptown | Visited IN-MT5's Study 1354 | -7/Scraptown | Visited Cyclists 1418 | -7/Scraptown | Visited UFD Registry 1418 | -7/Scraptown | Registered with UFD as "Protonmind" 1454 | -7/Scraptown | Entered Cyclist Reading Room 1595 | -7/Scraptown | Visited Scrapoid Research Area 1672 | -7/Scraptown | Visited Scrap Suit Storage 1923 | -7/Scraptown | Discovered exit to Factory (range 3) 1984 | -7/Scraptown | Visited Cartography Club 2050 | -7/Scraptown | Visited Junk Repository 2096 | -7/Scraptown | Visited Analyses Database 2172 | -7/Scraptown | Met Optimus 2172 | -7/Scraptown | Accepted into 0bPrime 2288 | -7/Scraptown | Visited Science Guys 2365 | -7/Scraptown | Civil war broke out across Scraptown 2478 | -7/Scraptown | Lost 3 allies 2503 | -7/Scraptown | Found Scrap Suit 2630 | -7/Scraptown | Lost 3 allies 2685 | -7/Scraptown | Found Prototype Storage 2703 | -7/Scraptown | Visited Curators Association 2881 | -7/Scraptown | Entered Factory 2881 | -5/Factory | Evolved 10 slots: Power x2, Propulsion x2, Utility x4, Weapon x2 3109 | -5/Factory | Identified exit to Factory 3174 | -5/Factory | Build established: Scavenger-Skirmisher 3596 | -5/Factory | Spotted B-75 Beast 3888 | -5/Factory | Lost 7 parts (1n3u3w) 4020 | -5/Factory | Identified Vmp. Humpback 4247 | -5/Factory | Build established: Scavenger-Gunner 4835 | -5/Factory | Destroyed B-75 Beast 4896 | -5/Factory | Lost 7 parts (2p2n1u2w) 4909 | -5/Factory | System corruption reached 10% 5020 | -5/Factory | Build established: Hauler-Gunner 5341 | -5/Factory | Lost 5 parts (3p2n) 5411 | -5/Factory | Core integrity fell below 50% 5670 | -5/Factory | Lost 3 parts (1u2w) 5930 | -5/Factory | Build established: Hauler-Mutant 6022 | -5/Factory | Lost 3 parts (2p1u) 6561 | -5/Factory | Core integrity fell below 20% 6800 | -5/Factory | Build established: Hauler-Gunner 6814 | -5/Factory | Identified exit to Upper Caves 6814 | -5/Factory | Discovered exit to Upper Caves (range 16) 6907 | -5/Factory | Entered Upper Caves 7858 | -5/Upper Caves | Attracted the attention of an 0b10 base 7861 | -5/Upper Caves | Self-destructed Last Messages --------------- 07853_ Slug penetrates G-50 Soldier. 07853_ G-50 Soldier destroyed. 07854_ Power failure averted by Imp. Cryofiber Web. 07854_ Overheating: Energy bleed (-51). 07855_ Power failure averted by Imp. Cryofiber Web. 07856_ Overheating: Neutrino Core damaged (-31). 07856_ Y-72 Warden Adv. Heat Sink blasted off. 07857_ Power failure averted by Imp. Cryofiber Web. 07857_ Overheating: Lgt. Angular Momentum Engine damaged (-14). 07857_ Penetrated by Slug. 07857_ Critical hit (Destroy). 07857_ Adv. Assault Cannon destroyed. 07858_ Power failure averted by Imp. Cryofiber Web. 07858_ Overheating: Matter decay (-8). 07859_ Power failure averted by Imp. Cryofiber Web. Map ----- +----------------------------------------------------+ | ?????????## #### #####?????## ##???????? | | ????????#### ?## ###????### ##???????? | | ??????? ### ## ######### ##???????? | | ?????? ## ######### ####?????? | | ???????## "# ### #### #####????? | | ???????## "## ## ####???? | | ??????### ### ###???? | | ?????### ### ##### ##???? | | ?????## ## ### ####### ###???? | | ?????## ########## ### ####### ###???? | | ?????????############ ### ##?## ##????? | | ?????????????????##### ### ##?## ##????? | | ????????????????######" ### ###?### ##????? | | ????????????????### ## =#### ####?#### ##????? | | ?????????######### # #### ###???#######????? | | ????? ##?######### #### ##?????######????? | | ????? # ### ##??????????????? | | ????? # #######??????????????? | | ????? ######;+#;#####; #######???? ##???????? | | ???????? # " """"# ####??????? ##???????? | | ????????????" % ""# #####?? ##???????? | | ???????? #""" %%"# ;### ##???????? | | ???????? # %*T# ##???????? | | ???????? # [%#%% ###???????? | | ??????????????"""" %s==!/[% ##### ##????????? | | ?????????? s%%%/@%####### ###????????? | | ?????????? sY*[%#==###????? ####????????? | | ?????????? # "#[ ##??????? ###?????????? | | ?????????? s # "# ##??????? ##??????????? | | ??????????? ## ?? # "# ##??????? ##??????????? | | ??????????? ? # ?? # "# ##????????????????????? | | ?????????????? # ?? # "# ##????????????????????? | | ??????????????????? # "# ????????????????????? | | ???????????????????###### ##????????????????????? | | ??????????????????? ##????????????????????? | | ??????????????????????? ##????????????????????? | | ???????????????????????######????????????????????? | | ???????????????????????######????????????????????? | | ?????????????????????????????????????????????????? | | ?????????????????????????????????????????????????? | | ?????????????????????????????????????????????????? | | ?????????????????????????????????????????????????? | | ?????????????????????????????????????????????????? | | ?????????????????????????????????????????????????? | | ?????????????????????????????????????????????????? | | ?????????????????????????????????????????????????? | | ?????????????????????????????????????????????????? | | ?????????????????????????????????????????????????? | | ?????????????????????????????????????????????????? | | ?????????????????????????????????????????????????? | +----------------------------------------------------+ Best States ------------- Heat Dissipation 106 Energy Generation 62 Energy Capacity 760 Matter Stores 300 Matter Capacity 300 Sight Range 16 Robot Scan Range 14 Terrain Scan Range 16 Terrain Scan Density 10 Cloak Strength 2 Base Temperature (-) 150 Resistance: KI 35 Resistance: TH 35 Resistance: EX 35 Resistance: EM 35 Resistance: I 35 Resistance: S 35 Resistance: P 35 Power Shielding 33 Evasion (%) 55 Targeting Accuracy 5 Target Analysis 6 Matter Filtering 50 Offensive Hacking 20 Item Schematics ----------------- None Robot Schematics ------------------ None Fabricated ------------ Nothing Repaired ---------- Nothing Alien Tech Used ----------------- None Achievements -------------- None Challenges ------------ None Game ------ Seed BraceSlugShifter Manual? 0 Play Time 01:06:33 Cumulative 2088.8 hours Start 2025.06.27 @ 20:17:48 End 2025.06.28 @ 12:45:43 Sessions 3 Manual Loads 0 Difficulty Explorer Special Mode None Game No. 1037 Rogue 62 Adventurer 0 Explorer 975 Win Type - Total 11 Types 11/0/0/0/0/0/0/0/0/0 Lore% 60 Gallery% 72 Achievement% 64 Wizard Run 0 Options --------- Layout 1 ASCII 0 Keyboard 0 Movement Numpad Keybinds 0 Fullscreen 1 Font 48/Smallcaps Map View 55x35 Zoom Use 0% Tactical HUD 1 Map Filters NONE Filters NONE Steam 1 RUN: 03e25b16-bba1-436e-861f-3d01ac6d0551